bitfinex/quotes_BTCUSD_20251015
["timestamp","ask_amount","ask_price","bid_price","bid_amount"]
[1760526434474,0.0358107,112660.0,112650.0,6.46060461]
[1760526434677,0.0358107,112660.0,112650.0,6.57204461]
[1760526435958,0.0358107,112660.0,112650.0,6.46060461]
[1760526436360,0.0358107,112660.0,112650.0,6.57204461]
[1760526436804,0.0358107,112660.0,112650.0,6.46060461]
[1760526437183,0.0358107,112660.0,112650.0,6.57204461]
[1760526438163,0.0358107,112660.0,112650.0,6.5805446]
[1760526439151,0.0358107,112660.0,112650.0,6.4333446]
[1760526439356,0.0358107,112660.0,112650.0,6.3219046]
[1760526439757,0.0358107,112660.0,112650.0,6.4333446]
[1760526440337,0.0358107,112660.0,112650.0,6.3219046]
[1760526440535,0.0358107,112660.0,112650.0,6.4333446]
[1760526440751,0.0358107,112660.0,112650.0,6.3219046]
[1760526440968,0.0358107,112660.0,112650.0,6.4333446]
[1760526441634,0.0358107,112660.0,112650.0,6.3219046]
[1760526442044,0.0358107,112660.0,112650.0,6.4333446]
[1760526442419,0.0358107,112660.0,112650.0,6.3219046]
[1760526442625,0.0358107,112660.0,112650.0,6.4333446]
[1760526444495,0.0358107,112660.0,112650.0,6.3219046]
[1760526444680,0.0358107,112660.0,112650.0,6.4333446]
[1760526445545,0.0251496,112660.0,112650.0,6.4333446]
[1760526446424,0.0251496,112660.0,112650.0,6.3219046]
[1760526446625,0.0251496,112660.0,112650.0,6.4333446]
[1760526446780,0.0251496,112660.0,112650.0,6.80839099]
[1760526446987,0.0251496,112660.0,112650.0,6.3219046]
[1760526447156,0.0251496,112660.0,112650.0,6.4333446]
[1760526448451,0.0251496,112660.0,112650.0,6.3219046]
[1760526448659,0.0251496,112660.0,112650.0,6.4333446]
[1760526448863,0.0251496,112660.0,112650.0,6.3219046]
[1760526449069,0.0251496,112660.0,112650.0,6.4333446]
[1760526449450,0.0251496,112660.0,112650.0,6.3219046]
[1760526449898,0.0251496,112660.0,112650.0,6.4333446]
[1760526450107,0.0251496,112660.0,112650.0,5.68325182]
[1760526450313,0.0251496,112660.0,112650.0,6.4333446]
[1760526450669,0.0251496,112660.0,112650.0,6.3219046]
[1760526451073,0.0251496,112660.0,112650.0,6.4333446]
[1760526451429,0.0251496,112660.0,112650.0,6.3219046]
[1760526451718,0.0251496,112660.0,112650.0,6.4333446]
[1760526451920,0.0251496,112660.0,112650.0,6.3219046]
[1760526452231,0.0251496,112660.0,112650.0,6.4333446]
[1760526452442,0.0251496,112660.0,112650.0,6.3219046]
[1760526452621,0.0251496,112660.0,112650.0,6.4333446]
[1760526452824,0.0251496,112660.0,112650.0,6.3219046]
[1760526453023,0.0251496,112660.0,112650.0,6.4333446]
[1760526453175,0.0251496,112660.0,112650.0,6.80839099]
[1760526453589,0.0251496,112660.0,112650.0,6.83234839]
[1760526454417,0.0251496,112660.0,112650.0,6.72090839]
[1760526454634,0.0251496,112660.0,112650.0,6.83234839]
[1760526454834,0.0251496,112660.0,112650.0,6.72090839]
[1760526455058,0.0251496,112660.0,112650.0,6.83234839]
[1760526455261,0.0251496,112660.0,112650.0,6.72090839]
[1760526455460,0.01448913,112660.0,112650.0,6.83234839]
[1760526456046,0.01448913,112660.0,112650.0,6.72090839]
[1760526456257,0.01448913,112660.0,112650.0,6.83234839]
[1760526456461,0.01448913,112660.0,112650.0,6.72090839]
[1760526457102,0.01448913,112660.0,112650.0,6.83234839]
[1760526457289,0.01448913,112660.0,112650.0,6.72090839]
[1760526457510,0.01448913,112660.0,112650.0,6.83234839]
[1760526458452,0.00104927,112660.0,112650.0,6.72090839]
[1760526458636,0.00104927,112660.0,112650.0,6.83234839]
[1760526459188,0.00104927,112660.0,112650.0,6.72090839]
[1760526459389,0.00104927,112660.0,112650.0,6.83234839]
[1760526460460,0.00104927,112660.0,112650.0,6.72090839]
[1760526460684,0.0504,112670.0,112660.0,5.39398228]
[1760526460886,0.0504,112670.0,112660.0,6.23376518]
[1760526461091,0.05097577,112670.0,112660.0,6.34520518]
[1760526461267,0.05057577,112670.0,112660.0,6.23376518]
[1760526461565,0.05057577,112670.0,112660.0,6.41984461]
[1760526461774,0.05057577,112670.0,112660.0,6.30840461]
[1760526461978,0.05057577,112670.0,112660.0,6.42384461]
[1760526462131,0.05057577,112670.0,112660.0,6.31240461]
[1760526462546,0.05057577,112670.0,112660.0,6.42384461]
[1760526462765,0.05057577,112670.0,112660.0,6.31240461]
[1760526462965,0.05057577,112670.0,112660.0,6.42384461]
[1760526463151,0.05057577,112670.0,112660.0,6.31240461]
[1760526463347,0.05057577,112670.0,112660.0,6.42384461]
[1760526463947,0.05057577,112670.0,112660.0,6.31240461]
[1760526464172,0.05057577,112670.0,112660.0,6.42384461]
[1760526464609,0.05057577,112670.0,112660.0,6.31240461]
[1760526464800,0.05057577,112670.0,112660.0,6.42384461]
[1760526465296,0.05057577,112670.0,112660.0,6.31240461]
[1760526465513,0.03991603,112670.0,112660.0,7.92034431]
[1760526465744,0.0504,112680.0,112660.0,7.95291349]
[1760526465966,0.0504,112680.0,112670.0,5.87596722]
[1760526466185,0.0504,112680.0,112670.0,6.99219496]
[1760526466408,0.0504,112720.0,112680.0,0.37618228]
[1760526466409,0.0195545,112720.0,112680.0,0.37618228]
[1760526466634,0.0195545,112720.0,112710.0,0.41061436]
[1760526466856,0.0195545,112720.0,112710.0,0.1258724]
[1760526467079,0.02243192,112720.0,112710.0,0.61174448]
[1760526467317,0.02243192,112720.0,112710.0,1.01285134]
[1760526467534,0.02243192,112720.0,112710.0,0.52697926]
[1760526467716,0.02293177,112720.0,112710.0,0.52697926]
[1760526467978,0.02293177,112720.0,112710.0,0.63841926]
[1760526468415,0.02293177,112720.0,112710.0,1.01285134]
[1760526468662,0.02293177,112720.0,112710.0,1.01385134]
[1760526469302,0.02293177,112720.0,112710.0,0.64041926]
[1760526469949,0.02293177,112720.0,112710.0,0.26598718]
[1760526470134,0.02293177,112720.0,112710.0,0.64041926]
[1760526470376,0.02293177,112720.0,112710.0,0.52897926]
[1760526470590,0.02293177,112720.0,112710.0,0.66130296]
[1760526471429,0.02293177,112720.0,112710.0,1.03573504]
[1760526473138,0.0504,112750.0,112720.0,0.03618228]
[1760526473353,0.05,112750.0,112740.0,1.26696864]
[1760526473589,0.05,112750.0,112740.0,6.26696864]
[1760526474024,0.05,112750.0,112740.0,6.29363313]
[1760526474243,0.05,112750.0,112740.0,6.3200629]
[1760526475136,0.05,112750.0,112740.0,6.34662002]
[1760526475595,0.05,112750.0,112740.0,6.46062002]
[1760526475832,0.05,112760.0,112740.0,7.0630521]
[1760526476063,0.0504,112780.0,112770.0,0.05398228]
[1760526476297,0.05,112780.0,112770.0,1.24922507]
[1760526476520,0.05,112780.0,112770.0,1.34352986]
[1760526476740,0.05,112780.0,112770.0,1.25814867]
[1760526476967,0.05,112780.0,112770.0,1.37018867]
[1760526477185,0.05,112780.0,112770.0,1.25814867]
[1760526477398,0.05,112780.0,112770.0,1.37028475]
[1760526477848,0.05,112780.0,112770.0,1.25828475]
[1760526478070,0.05,112780.0,112770.0,1.28604786]
[1760526478764,0.05,112780.0,112770.0,1.39804786]
[1760526478981,0.05,112780.0,112770.0,1.40004786]
[1760526479218,0.05,112780.0,112770.0,1.28804786]
[1760526479454,0.0534503,112780.0,112770.0,1.28804786]
[1760526479679,0.0534503,112780.0,112770.0,1.39804786]
[1760526479892,0.0534503,112780.0,112770.0,1.74871683]
[1760526480115,0.0534503,112780.0,112770.0,6.66247994]
[1760526480334,0.0534503,112780.0,112770.0,6.77447994]
[1760526481033,0.0534503,112780.0,112770.0,6.79901255]
[1760526481900,0.0534503,112780.0,112770.0,6.77445543]
[1760526482132,0.0534503,112780.0,112770.0,6.66245543]
[1760526482661,0.0534503,112780.0,112770.0,6.79897255]
[1760526482894,0.0534503,112780.0,112770.0,6.68701255]
[1760526483138,0.0534503,112780.0,112770.0,5.65111919]
[1760526483362,0.0534503,112780.0,112770.0,6.37422024]
[1760526485459,0.0534503,112780.0,112770.0,6.66256722]
[1760526485692,0.0534503,112780.0,112770.0,5.53915919]
[1760526485901,0.0534503,112780.0,112770.0,6.26237203]
[1760526486109,0.0534503,112780.0,112770.0,6.66256722]
[1760526486312,0.0534503,112780.0,112770.0,6.77460722]
[1760526486537,0.0534503,112780.0,112770.0,6.77256722]
[1760526486746,0.0534503,112780.0,112770.0,6.66356722]
[1760526486970,0.0534503,112780.0,112770.0,6.77556722]
[1760526487173,0.0534503,112780.0,112770.0,6.66356722]
[1760526487608,0.0534503,112780.0,112770.0,6.66156722]
[1760526487826,0.0534503,112780.0,112770.0,6.77556722]
[1760526488032,0.0534503,112780.0,112770.0,6.76706723]
[1760526489487,0.0534503,112780.0,112770.0,6.17462835]
[1760526489684,0.0534503,112780.0,112770.0,6.19918547]
[1760526490226,0.0534503,112780.0,112770.0,6.17462835]
[1760526491047,0.0534503,112780.0,112770.0,6.13844607]
[1760526491368,0.0534503,112780.0,112770.0,6.14886524]
[1760526492282,0.0534503,112780.0,112770.0,6.14875345]
[1760526492662,0.0534503,112780.0,112770.0,6.14886524]
[1760526492953,0.0534503,112780.0,112770.0,6.15736523]
[1760526493421,0.0534503,112780.0,112770.0,5.13819119]
[1760526493703,0.0534503,112780.0,112770.0,5.66907116]
[1760526493902,0.0534503,112780.0,112770.0,0.78103116]
[1760526494151,0.0534503,112780.0,112770.0,1.11903116]
[1760526494329,0.0534503,112780.0,112770.0,1.11082497]
[1760526494560,0.0534503,112780.0,112770.0,0.77282497]
[1760526494751,0.0534503,112780.0,112770.0,1.14700725]
[1760526494977,0.0534503,112780.0,112770.0,0.61612728]
[1760526495116,0.0534503,112780.0,112770.0,1.14900725]
[1760526495317,0.0534503,112780.0,112770.0,1.14600725]
[1760526495745,0.0534503,112780.0,112770.0,1.14800725]
[1760526496127,0.0534503,112780.0,112770.0,1.14600725]
[1760526496514,0.0534503,112780.0,112770.0,1.14800725]
[1760526496732,0.53087997,112810.0,112780.0,0.37618228]
[1760526496932,0.53087997,112810.0,112790.0,0.01773206]
[1760526497182,0.58846437,112820.0,112790.0,0.02596808]
[1760526498181,0.58846437,112820.0,112790.0,0.01773206]
[1760526498807,0.53087997,112810.0,112790.0,0.01773206]
[1760526498950,0.53087997,112800.0,112780.0,0.1258724]
[1760526499208,0.53087997,112800.0,112780.0,0.01773364]
[1760526499608,0.53087997,112800.0,112780.0,0.05391592]
[1760526500021,0.53087997,112800.0,112790.0,0.001]
[1760526500686,0.0575844,112820.0,112790.0,0.001]
[1760526500837,0.3266535,112800.0,112790.0,0.001]
[1760526501033,0.0575844,112820.0,112790.0,0.001]
[1760526501229,0.53087997,112800.0,112780.0,0.01773364]
[1760526501549,0.53087997,112790.0,112770.0,0.08038817]
[1760526501754,1.557768,112810.0,112790.0,0.46912003]
[1760526502334,0.00114959,112800.0,112790.0,0.46912003]
[1760526502911,0.53202956,112800.0,112790.0,0.46912003]
[1760526503143,2.42979756,112800.0,112790.0,0.46912003]
[1760526504666,1.89891759,112800.0,112790.0,0.46912003]
[1760526504815,2.42979756,112800.0,112790.0,0.46912003]
[1760526506031,2.96067753,112800.0,112790.0,0.46912003]
[1760526506431,2.96067753,112800.0,112770.0,0.00013608]
[1760526506789,0.53087997,112780.0,112770.0,0.00013608]
[1760526509334,0.74841976,112780.0,112770.0,0.46925611]
[1760526509541,0.34,112790.0,112770.0,0.46925611]
[1760526509747,0.74841976,112780.0,112770.0,0.46925611]
[1760526510193,0.52153094,112780.0,112770.0,0.46925611]
[1760526512715,0.00057485,112790.0,112770.0,0.46925611]
[1760526513154,0.37420988,112780.0,112770.0,0.46925611]
[1760526514715,0.71478473,112790.0,112770.0,0.84346599]
[1760526515096,0.71478473,112790.0,112770.0,0.46925611]
[1760526515301,0.71478473,112790.0,112770.0,0.84346599]
[1760526519123,0.34057485,112790.0,112770.0,0.84346599]
[1760526519505,0.71478473,112790.0,112770.0,0.84346599]
[1760526521607,0.71478473,112790.0,112770.0,0.46925611]
[1760526521782,0.71478473,112790.0,112770.0,0.84346599]
[1760526523934,0.34057485,112790.0,112770.0,0.84346599]
[1760526524996,0.71478473,112790.0,112770.0,0.46925611]
[1760526525344,0.71478473,112790.0,112770.0,0.84346599]
[1760526526040,0.34057485,112790.0,112770.0,0.84346599]
[1760526527404,0.34057485,112790.0,112770.0,0.84334403]
[1760526528247,0.71466277,112790.0,112770.0,0.46925611]
[1760526528476,0.71408792,112780.0,112770.0,0.46925611]
[1760526532413,0.34,112780.0,112770.0,0.46925611]
[1760526533987,0.71408792,112780.0,112770.0,0.46925611]
[1760526536578,2.27185592,112780.0,112770.0,0.46925611]
[1760526545054,2.27185592,112780.0,112770.0,0.46875611]
[1760526547050,1.897768,112780.0,112770.0,0.46875611]
[1760526547252,2.27185592,112780.0,112770.0,0.46875611]
[1760526550692,2.361538,112780.0,112770.0,0.46875611]
[1760526551585,2.27185592,112780.0,112770.0,0.46875611]
[1760526554185,0.34,112780.0,112770.0,0.46875611]
[1760526563304,0.71408792,112780.0,112770.0,0.46875611]
[1760526564661,0.34,112780.0,112770.0,0.46875611]
[1760526564863,0.71408792,112780.0,112770.0,0.46875611]
[1760526569745,0.34,112780.0,112770.0,0.46875611]
[1760526569932,0.71408792,112780.0,112770.0,0.46875611]
[1760526570590,0.34,112780.0,112770.0,0.46875611]
[1760526572335,0.71408792,112780.0,112770.0,0.46875611]
[1760526573810,0.34,112780.0,112770.0,0.46875611]
[1760526574171,0.71408792,112780.0,112770.0,0.46875611]
[1760526574372,0.36667464,112780.0,112770.0,0.46875611]
[1760526574935,0.74076256,112780.0,112770.0,0.46875611]
[1760526580917,0.74025856,112780.0,112770.0,0.46875611]
[1760526581133,0.71358392,112780.0,112770.0,0.46875611]
[1760526584987,0.71336224,112780.0,112770.0,0.46875611]
[1760526587539,1.08776578,112780.0,112770.0,0.46875611]
[1760526588274,2.64553378,112780.0,112770.0,0.46875611]
[1760526588736,2.67220991,112780.0,112770.0,0.46875611]
[1760526591794,2.68611456,112780.0,112770.0,0.46875611]
[1760526592154,2.67220991,112780.0,112770.0,0.46875611]
[1760526596562,2.68611456,112780.0,112770.0,0.46875611]
[1760526599444,2.34684024,112780.0,112770.0,0.46875611]
[1760526600336,2.81076805,112780.0,112770.0,0.46875611]
[1760526600550,2.72108597,112780.0,112770.0,0.46875611]
[1760526601096,2.70718132,112780.0,112770.0,0.46875611]
[1760526602212,3.04718132,112780.0,112770.0,0.46875611]
[1760526603064,3.04818132,112780.0,112770.0,0.46875611]
[1760526603254,3.1378634,112780.0,112770.0,0.46875611]
[1760526603754,3.1368634,112780.0,112770.0,0.46875611]
[1760526603954,3.1378634,112780.0,112770.0,0.46875611]
[1760526605819,3.15176934,112780.0,112770.0,0.46875611]
[1760526606646,3.06208726,112780.0,112770.0,0.46875611]
[1760526606818,3.31048726,112780.0,112770.0,0.46875611]
[1760526612236,3.29658132,112780.0,112770.0,0.46875611]
[1760526616521,3.31048712,112780.0,112770.0,0.46875611]
[1760526616741,3.06208712,112780.0,112770.0,0.46875611]
[1760526616962,3.1517692,112780.0,112770.0,0.46875611]
[1760526620765,3.06208712,112780.0,112770.0,0.46875611]
[1760526622160,3.04818132,112780.0,112770.0,0.46875611]
[1760526625446,3.06208696,112780.0,112770.0,0.46875611]
[1760526628219,3.07872621,112780.0,112770.0,0.46875611]
[1760526631844,4.23764568,112780.0,112770.0,0.46875611]
[1760526632048,3.2237745,112780.0,112770.0,0.46875611]
[1760526632263,2.69057484,112780.0,112770.0,0.46875611]
[1760526632472,1.92544413,112780.0,112770.0,0.46875611]
[1760526632674,2.29968986,112780.0,112770.0,0.46875611]
[1760526633089,0.02767613,112780.0,112770.0,0.46875611]
[1760526633491,0.36767613,112780.0,112770.0,0.46875611]
[1760526633874,0.74092186,112780.0,112770.0,0.46875611]
[1760526634844,0.36667613,112780.0,112770.0,0.46875611]
[1760526635081,0.74092186,112780.0,112770.0,0.46875611]
[1760526635763,0.02667613,112780.0,112770.0,0.46875611]
[1760526636156,0.40092186,112780.0,112770.0,0.46875611]
[1760526636302,0.02667613,112780.0,112770.0,0.46875611]
[1760526636511,0.36667613,112780.0,112770.0,0.46875611]
[1760526636708,0.38058015,112780.0,112770.0,0.84300184]
[1760526637317,0.04058015,112780.0,112770.0,0.46875611]
[1760526637561,0.04058015,112780.0,112770.0,1.21724757]
[1760526637873,0.02667613,112780.0,112770.0,1.21724757]
[1760526639232,0.02667613,112780.0,112770.0,0.84300184]
[1760526639658,0.02667613,112780.0,112770.0,0.46875611]
[1760526639868,0.02667613,112780.0,112770.0,0.84300184]
[1760526640290,0.02667613,112780.0,112770.0,0.95452184]
[1760526640834,0.01447839,112790.0,112770.0,0.95452184]
[1760526641029,0.01447839,112790.0,112780.0,0.37424573]
[1760526641233,0.41539539,112790.0,112770.0,0.46875611]
[1760526641434,0.04114966,112790.0,112770.0,0.95452184]
[1760526641671,0.04114966,112790.0,112770.0,0.84300184]
[1760526641924,0.41539539,112790.0,112770.0,0.84300184]
[1760526642131,0.40149185,112790.0,112770.0,0.84300184]
[1760526642354,0.40149185,112790.0,112770.0,0.95452184]
[1760526642503,0.40149185,112790.0,112770.0,0.58027611]
[1760526642706,0.02724612,112790.0,112770.0,0.58027611]
[1760526642910,0.40149185,112790.0,112770.0,0.95452184]
[1760526643108,0.02724612,112790.0,112770.0,0.95452184]
[1760526643513,0.02724612,112790.0,112780.0,0.37424573]
[1760526643705,0.40149185,112790.0,112770.0,0.46875611]
[1760526643888,0.40149185,112790.0,112770.0,0.84300184]
[1760526644097,0.40149185,112790.0,112770.0,0.95452184]
[1760526644745,0.02724612,112790.0,112770.0,0.95452184]
[1760526645950,0.40149185,112790.0,112770.0,0.95452184]
[1760526646988,0.40149185,112790.0,112770.0,0.84300184]
[1760526647470,0.02724612,112790.0,112770.0,0.46875611]
[1760526648438,0.02724612,112790.0,112770.0,0.58027611]
[1760526648638,0.02724612,112790.0,112770.0,0.46875611]
[1760526648792,0.02724612,112790.0,112770.0,0.58027611]
[1760526649192,0.4013732,112790.0,112770.0,0.58027611]
[1760526649372,0.4013732,112790.0,112770.0,0.46875611]
[1760526649373,1.93189508,112780.0,112770.0,0.46875611]
[1760526649575,0.71412708,112780.0,112770.0,0.46875611]
[1760526649809,0.74080274,112780.0,112770.0,0.46875611]
[1760526650177,2.29857074,112780.0,112770.0,0.46875611]
[1760526653599,2.05524776,112780.0,112770.0,0.46875611]
[1760526657682,2.70939186,112780.0,112770.0,0.46875611]
[1760526657883,2.29857074,112780.0,112770.0,0.46875611]
[1760526658944,2.31247554,112780.0,112770.0,0.46875611]
[1760526662239,2.29857074,112780.0,112770.0,0.46875611]
[1760526666519,2.68660283,112780.0,112770.0,0.46875611]
[1760526666741,2.77933007,112780.0,112770.0,0.46875611]
[1760526666903,2.79594529,112780.0,112770.0,0.46875611]
[1760526667110,2.81508605,112780.0,112770.0,0.46875611]
[1760526667306,3.17259791,112780.0,112770.0,0.46875611]
[1760526667504,3.18918937,112780.0,112770.0,0.46875611]
[1760526667712,2.81506229,112780.0,112770.0,0.46875611]
[1760526668355,2.81606229,112780.0,112770.0,0.46875611]
[1760526668533,2.79693439,112780.0,112770.0,0.46875611]
[1760526669262,2.84689769,112780.0,112770.0,0.4421126]
[1760526669469,2.84789769,112780.0,112770.0,0.4421126]
[1760526670862,3.22202477,112780.0,112770.0,0.4421126]
[1760526672391,3.20811976,112780.0,112770.0,0.4421126]
[1760526673392,2.83399268,112780.0,112770.0,0.4421126]
[1760526675030,3.20811976,112780.0,112770.0,0.41546119]
[1760526675229,3.20811976,112780.0,112770.0,0.38880978]
[1760526675230,3.24378248,112780.0,112770.0,0.38880978]
[1760526675372,0.34,112740.0,112730.0,0.0717521]
[1760526675571,2.64607214,112740.0,112730.0,0.0717521]
[1760526675980,2.64607214,112740.0,112710.0,0.0717521]
[1760526675981,1.557768,112730.0,112710.0,0.0717521]
[1760526676148,0.37412708,112720.0,112710.0,0.0717521]
[1760526676553,0.37412708,112720.0,112700.0,0.11152]
[1760526676752,0.4008151,112720.0,112700.0,0.11152]
[1760526677141,0.37412708,112720.0,112690.0,0.1832721]
[1760526677352,0.02668805,112710.0,112690.0,0.1832721]
[1760526677776,0.02668805,112710.0,112690.0,0.11152]
[1760526678406,0.40081513,112710.0,112690.0,0.11252]
[1760526679296,0.37412708,112710.0,112690.0,0.11252]
[1760526679507,0.37412708,112700.0,112690.0,0.11252]
[1760526679684,0.40081567,112710.0,112690.0,0.11252]
[1760526679846,0.40081567,112710.0,112690.0,0.001]
[1760526680835,0.40086562,112710.0,112680.0,0.12926937]
[1760526685688,0.40086562,112710.0,112680.0,0.50339645]
[1760526685898,0.40086562,112710.0,112680.0,0.48564708]
[1760526686527,0.37412708,112700.0,112660.0,0.03618228]
[1760526686744,0.37412708,112700.0,112670.0,0.50343803]
[1760526686927,0.37412708,112700.0,112670.0,0.48568708]
[1760526687372,0.40086562,112710.0,112670.0,0.48568708]
[1760526688225,0.37412708,112700.0,112670.0,0.48568708]
[1760526688436,0.40086562,112710.0,112670.0,0.48568708]
[1760526688647,0.37412708,112700.0,112670.0,0.48568708]
[1760526690055,0.37412708,112700.0,112680.0,0.01774937]
[1760526691108,0.37412708,112700.0,112670.0,0.48568708]
[1760526692757,0.37412708,112680.0,112660.0,0.02226148]
[1760526692961,0.37412708,112680.0,112660.0,0.11156]
[1760526696318,0.40082422,112690.0,112660.0,0.12931252]
[1760526696535,0.71412708,112670.0,112650.0,0.0004]
[1760526696679,0.71412708,112670.0,112660.0,0.04772]
[1760526697718,0.71417701,112670.0,112660.0,0.04772]
[1760526699679,0.34,112660.0,112650.0,0.0004]
[1760526699981,0.34,112660.0,112650.0,0.11196]
[1760526700199,0.34,112660.0,112650.0,0.0004]
[1760526700200,0.71412708,112660.0,112650.0,0.0004]
[1760526700560,0.71412708,112660.0,112650.0,0.11196]
[1760526700999,0.73692452,112660.0,112650.0,0.0004]
[1760526701188,2.74290736,112660.0,112650.0,0.0004]
[1760526701588,2.75682659,112660.0,112650.0,0.0004]
[1760526702164,2.74290736,112660.0,112650.0,0.0004]
[1760526703043,2.74390736,112660.0,112650.0,0.0004]
[1760526703421,2.74490736,112660.0,112650.0,0.0004]
[1760526704923,2.77161575,112660.0,112650.0,0.0004]
[1760526706268,2.78553617,112660.0,112650.0,0.0004]
[1760526708970,2.83825022,112660.0,112650.0,0.0004]
[1760526709366,3.21577054,112660.0,112650.0,0.0004]
[1760526709562,3.21477054,112660.0,112650.0,0.0004]
[1760526710004,3.21377054,112660.0,112650.0,0.0004]
[1760526710336,3.21477054,112660.0,112650.0,0.0004]
[1760526710760,3.12415101,112660.0,112650.0,0.0004]
[1760526711148,3.12515101,112660.0,112650.0,0.0004]
[1760526711605,3.12415101,112660.0,112650.0,0.0004]
[1760526711813,3.12515101,112660.0,112650.0,0.0004]
[1760526711986,1.99937653,112660.0,112650.0,0.0004]
[1760526712216,3.15770977,112660.0,112650.0,0.0004]
[1760526712754,4.30000043,112660.0,112650.0,0.0004]
[1760526713355,3.17422595,112660.0,112650.0,0.0004]
[1760526716618,3.18814834,112660.0,112650.0,0.0004]
[1760526717573,2.80166916,112660.0,112650.0,0.0004]
[1760526717986,1.67589468,112660.0,112650.0,0.0004]
[1760526718210,1.62319622,112660.0,112650.0,0.0004]
[1760526718421,2.37371254,112660.0,112650.0,0.0004]
[1760526718627,2.40989482,112660.0,112650.0,0.0004]
[1760526718792,2.78515298,112660.0,112650.0,0.0004]
[1760526718992,2.78415298,112660.0,112650.0,0.0004]
[1760526719203,2.40789482,112660.0,112650.0,0.0004]
[1760526719554,2.78415298,112660.0,112650.0,0.0004]
[1760526719848,3.12415298,112660.0,112650.0,0.0004]
[1760526719995,2.74889482,112660.0,112650.0,0.0004]
[1760526720198,2.74989482,112660.0,112650.0,0.0004]
[1760526720399,2.76643347,112660.0,112650.0,0.0004]
[1760526720805,2.85611555,112660.0,112650.0,0.0004]
[1760526721004,4.35714819,112660.0,112650.0,0.0004]
[1760526722165,4.3422258,112660.0,112650.0,0.0004]
[1760526722398,4.3412258,112660.0,112650.0,0.0004]
[1760526722765,4.3432258,112660.0,112650.0,0.0004]
[1760526723357,4.36230479,112660.0,112650.0,0.0004]
[1760526723589,4.36430479,112660.0,112650.0,0.0004]
[1760526724969,3.14884823,112660.0,112650.0,0.0004]
[1760526725178,3.12976924,112660.0,112650.0,0.0004]
[1760526725948,3.12776924,112660.0,112650.0,0.0004]
[1760526726072,3.12780424,112660.0,112650.0,0.0004]
[1760526726311,3.12880424,112660.0,112650.0,0.0004]
[1760526726519,3.15118643,112660.0,112650.0,0.0004]
[1760526726936,3.14918643,112660.0,112650.0,0.0004]
[1760526727136,4.29307042,112660.0,112650.0,0.0004]
[1760526727577,4.29507042,112660.0,112650.0,0.0004]
[1760526728232,4.29307042,112660.0,112650.0,0.0004]
[1760526728362,4.29407042,112660.0,112650.0,0.0004]
[1760526728713,4.29507042,112660.0,112650.0,0.0004]
[1760526729089,4.3189872,112660.0,112650.0,0.0004]
[1760526729452,4.29660501,112660.0,112650.0,0.0004]
[1760526731008,3.11073147,112660.0,112650.0,0.0004]
[1760526731271,2.73547331,112660.0,112650.0,0.0004]
[1760526731690,1.98453199,112660.0,112650.0,0.0004]
[1760526732363,2.69979015,112660.0,112650.0,0.0004]
[1760526732568,2.69879015,112660.0,112650.0,0.0004]
[1760526732780,2.69779015,112660.0,112650.0,0.0004]
[1760526733445,2.47997223,112660.0,112650.0,0.0004]
[1760526733698,2.48097223,112660.0,112650.0,0.0004]
[1760526733927,0.36770839,112660.0,112650.0,0.0004]
[1760526734141,4.993e-05,112670.0,112650.0,0.11212]
[1760526734361,0.5594507,112670.0,112650.0,0.11212]
[1760526734584,0.34,112660.0,112650.0,0.11212]
[1760526735025,2.4304664,112660.0,112650.0,0.0004]
[1760526735920,2.44438502,112660.0,112650.0,0.0004]
[1760526736127,2.46490614,112660.0,112650.0,0.0004]
[1760526737034,2.46590614,112660.0,112650.0,0.0004]
[1760526737946,3.1244689,112660.0,112650.0,0.0004]
[1760526738168,2.62753347,112660.0,112650.0,0.0004]
[1760526741172,3.16023187,112660.0,112650.0,0.0004]
[1760526741599,3.22780362,112660.0,112650.0,0.0004]
[1760526742231,3.21388476,112660.0,112650.0,0.0004]
[1760526742383,3.21288476,112660.0,112650.0,0.0004]
[1760526742601,3.21388476,112660.0,112650.0,0.0004]
[1760526743029,3.19826531,112660.0,112650.0,0.0004]
[1760526743605,3.21488581,112660.0,112650.0,0.0004]
[1760526744082,3.19826531,112660.0,112650.0,0.0004]
[1760526745003,2.85826531,112660.0,112650.0,0.0004]
[1760526745817,2.88497948,112660.0,112650.0,0.0004]
[1760526746608,2.89889993,112660.0,112650.0,0.0004]
[1760526746948,3.23889993,112660.0,112650.0,0.0004]
[1760526747078,3.25551888,112660.0,112650.0,0.0004]
[1760526747477,3.23889993,112660.0,112650.0,0.0004]
[1760526748540,3.25551707,112660.0,112650.0,0.0004]
[1760526749531,3.16583499,112660.0,112650.0,0.0004]
[1760526750032,3.16370899,112660.0,112650.0,0.0004]
[1760526750246,2.63101059,112660.0,112650.0,0.0004]
[1760526751405,2.61186731,112660.0,112650.0,0.0004]
[1760526752277,2.58132972,112660.0,112650.0,0.0004]
[1760526752715,2.47757569,112660.0,112650.0,0.0004]
[1760526753536,2.51375797,112660.0,112650.0,0.0004]
[1760526754487,2.51275797,112660.0,112650.0,0.0004]
[1760526755099,2.51375797,112660.0,112650.0,0.0004]
[1760526755515,3.10664379,112660.0,112650.0,0.0004]
[1760526756779,3.12056412,112660.0,112650.0,0.0004]
[1760526757362,4.27027792,112660.0,112650.0,0.0004]
[1760526757792,3.1446937,112660.0,112650.0,0.0004]
[1760526759068,4.27027792,112660.0,112650.0,0.0004]
[1760526759275,3.1446937,112660.0,112650.0,0.0004]
[1760526760293,4.27027792,112660.0,112650.0,0.0004]
[1760526762325,4.25635759,112660.0,112650.0,0.0004]
[1760526763519,4.23222801,112660.0,112650.0,0.0004]
[1760526764392,3.10664379,112660.0,112650.0,0.0004]
[1760526765221,3.12056447,112660.0,112650.0,0.0004]
[1760526765424,4.24614869,112660.0,112650.0,0.0004]
[1760526767317,4.2820024,112660.0,112650.0,0.0004]
[1760526767532,4.37168448,112660.0,112650.0,0.0004]
[1760526769499,3.24648075,112660.0,112650.0,0.0004]
[1760526771317,2.7814771,112660.0,112650.0,0.0004]
[1760526772266,2.76755642,112660.0,112650.0,0.0004]
[1760526774587,2.74836327,112660.0,112650.0,0.0004]
[1760526774736,2.74836327,112660.0,112610.0,0.0717521]
[1760526774737,0.03618228,112640.0,112610.0,0.0717521]
[1760526774940,2.64628514,112620.0,112610.0,0.0717521]
[1760526775505,1.09064314,112620.0,112590.0,0.0294788]
[1760526775739,0.37532157,112600.0,112590.0,0.0294788]
[1760526776149,0.37532157,112600.0,112590.0,0.02997865]
[1760526776949,0.37532157,112600.0,112590.0,0.01221509]
[1760526777124,0.37532157,112600.0,112590.0,0.02997865]
[1760526778057,0.37532157,112600.0,112590.0,0.03097865]
[1760526778486,0.75064314,112600.0,112590.0,0.03097865]
[1760526778682,2.64628514,112600.0,112590.0,0.01321509]
[1760526779049,2.27096357,112600.0,112590.0,0.01321509]
[1760526780034,2.27096357,112600.0,112590.0,0.01221509]
[1760526781295,1.895642,112600.0,112590.0,0.01221509]